[Event "4NCL 2019-20"]
[Site "Daventry"]
[Date "2020.02.08"]
[Round "5"]
[White "Li, Henry"]
[Black "Batchelor, Peter J"]
[Result "1/2-1/2"]
[ECO "B12"]
[WhiteElo "2310"]
[BlackElo "2318"]
[Annotator "ChessBase"]
[PlyCount "108"]
[EventDate "2020.01.11"]
[EventCountry "ENG"]
[SourceTitle "playchess.com"]
[Source "ChessBase"]
[SourceQuality "1"]
[TimeControl "40/6000:3000+30"]

1. e4 {[%emt 0:00:00]} c6 {[%emt 0:00:00]} 2. d4 {[%emt 0:00:00]} d5 {[%emt 0:00:00]} 3. e5 {[%emt 0:00:00]} Bf5 {[%emt 0:00:00]} 4. h4 {[%emt 0:00:00]} h5 {[%emt 0:00:29]} 5. Bd3 {[%emt 0:00:00]} Bxd3 {[%emt 0:00:00]} 6. Qxd3 {[%emt 0:00:00]} Qa5+ {[%emt 0:00:00]} 7. Nd2 {[%emt 0:00:00]} e6 {[%emt 0:07:22]} 8. Ngf3 {[%emt 0:04:11]} Qa6 {[%emt 0:04:17]} 9. c4 {[%emt 0:00:03]} Nh6 {[%emt 0:03:24]} 10. O-O {[%emt 0:08:40]} Nf5 {[%emt 0:02:45]} 11. b3 {[%emt 0:04:04]} Be7 12. a4 {[%emt 0:02:41]} O-O {[%emt 0:18:08]} 13. Ba3 Bxa3 {[%emt 0:00:00]} 14. Rxa3 Rd8 {[%emt 0:00:00]} 15. b4 dxc4 {[%emt 0:00:00]} 16. Nxc4 Nd7 {[%emt 0:00:00]} 17. Rb1 b6 {[%emt 0:00:00]} 18. b5 Qb7 {[%emt 0:00:00]} 19. Qe4 Rac8 {[%emt 0:00:00]} 20. Ne3 Nxe3 {[%emt 0:00:00]} 21. fxe3 Rc7 {[%emt 0:00:00]} 22. Ng5 Nf8 {[%emt 0:00:00]} 23. Qf3 cxb5 {[%emt 0:00:00]} 24. Qxb7 Rxb7 {[%emt 0:00:00]} 25. axb5 f6 {[%emt 0:00:00]} 26. Nf3 Ng6 {[%emt 0:00:00]} 27. exf6 gxf6 {[%emt 0:00:00]} 28. e4 Rc7 {[%emt 0:00:00]} 29. Rba1 Rdd7 {[%emt 0:00:00]} 30. R1a2 f5 {[%emt 0:00:00]} 31. exf5 exf5 {[%emt 0:00:00]} 32. Kf2 f4 {[%emt 0:00:00]} 33. Re2 Rd5 {[%emt 0:00:00]} 34. Re8+ Kf7 {[%emt 0:00:00]} 35. Ra8 Rc2+ {[%emt 0:00:00]} 36. Kg1 Rxb5 {[%emt 0:00:00]} 37. R3xa7+ Kf6 {[%emt 0:00:00]} 38. Ra2 Rb1+ {[%emt 0:00:00]} 39. Kh2 Rcc1 {[%emt 0:00:00]} 40. g3 Rc3 {[%emt 0:00:00]} 41. R8a3 Rbb3 {[%emt 0:50:30]} 42. Rxb3 Rxb3 {[%emt 0:00:30]} 43. Kg2 Kf5 {[%emt 0:00:30]} 44. d5 Rd3 {[%emt 0:00:30]} 45. Rb2 Ne5 {[%emt 0:00:30]} 46. Nxe5 Rxg3+ {[%emt 0:00:30]} 47. Kf2 Kxe5 {[%emt 0:00:30]} 48. Rxb6 Kxd5 {[%emt 0:00:30]} 49. Rb5+ Ke4 {[%emt 0:00:30]} 50. Rxh5 Ra3 {[%emt 0:00:30]} 51. Rb5 Ra2+ {[%emt 0:00:30]} 52. Kf1 Kf3 {[%emt 0:00:30]} 53. Rb3+ Kg4 {[%emt 0:00:30]} 54. h5 Kxh5 {[%emt 0:00:30]} 1/2-1/2

[Event "4NCL 2019-20"]
[Site "Daventry"]
[Date "2020.02.08"]
[Round "5"]
[White "O'Donnell, Conor"]
[Black "Hodgson, John H"]
[Result "1-0"]
[ECO "D70"]
[WhiteElo "2307"]
[BlackElo "2082"]
[Annotator "ChessBase"]
[PlyCount "67"]
[EventDate "2020.01.11"]
[EventCountry "ENG"]
[SourceTitle "playchess.com"]
[Source "ChessBase"]
[SourceQuality "1"]
[TimeControl "40/6000:3000+30"]

1. d4 {[%emt 0:00:00]} Nf6 {[%emt 0:00:00]} 2. c4 {[%emt 0:00:00]} g6 {[%emt 0:00:00]} 3. f3 {[%emt 0:00:00]} d5 {[%emt 0:00:00]} 4. cxd5 {[%emt 0:00:00]} Nxd5 {[%emt 0:00:00]} 5. e4 {[%emt 0:00:00]} Nb6 {[%emt 0:00:00]} 6. Nc3 {[%emt 0:00:00]} Bg7 {[%emt 0:00:00]} 7. Be3 {[%emt 0:00:00]} O-O {[%emt 0:00:00]} 8. Qd2 {[%emt 0:00:00]} e5 {[%emt 0:00:00]} 9. d5 {[%emt 0:00:00]} c6 {[%emt 0:00:00]} 10. h4 {[%emt 0:00:00]} cxd5 {[%emt 0:01:19]} 11. exd5 {[%emt 0:00:19]} N8d7 {[%emt 0:00:59]} 12. h5 {[%emt 0:00:02]} Nf6 {[%emt 0:05:17]} 13. hxg6 {[%emt 0:00:00]} fxg6 {[%emt 0:00:00]} 14. O-O-O {[%emt 0:29:55]} Re8 {[%emt 0:30:13]} 15. Nh3 {[%emt 0:00:00]} Bxh3 {[%emt 0:04:52]} 16. Rxh3 {[%emt 0:00:00]} Rc8 {[%emt 0:00:35]} 17. Kb1 {[%emt 0:00:00]} Nc4 {[%emt 0:16:55]} 18. Bxc4 {[%emt 0:00:00]} Rxc4 {[%emt 0:00:00]} 19. Bg5 {[%emt 0:02:00]} Rd4 {[%emt 0:08:49]} 20. Qc2 {[%emt 0:03:38]} Qd7 {[%emt 0:06:36]} 21. Bxf6 {[%emt 0:07:23]} Bxf6 {[%emt 0:00:00]} 22. Rdh1 {[%emt 0:07:40]} Rc8 {[%emt 0:07:27]} 23. Qb3 {[%emt 0:06:33]} b6 {[%emt 0:02:50]} 24. d6+ {[%emt 0:08:44]} Kh8 {[%emt 0:01:18]} 25. Ne4 {[%emt 0:13:10]} Bd8 {[%emt 0:00:00]} 26. Rxh7+ {[%emt 0:02:58]} Qxh7 27. Rxh7+ {[%emt 0:00:00]} Kxh7 {[%emt 0:00:00]} 28. Qf7+ {[%emt 0:00:00]} Kh6 {[%emt 0:00:00]} 29. Qf8+ {[%emt 0:01:05]} Kh7 {[%emt 0:00:00]} 30. a3 {[%emt 0:08:20]} Rd1+ {[%emt 0:07:16]} 31. Ka2 {[%emt 0:00:00]} a5 {[%emt 0:00:00]} 32. Ng5+ {[%emt 0:01:42]} Bxg5 {[%emt 0:00:00]} 33. Qxc8 {[%emt 0:00:00]} Bf6 {[%emt 0:00:00]} 34. Qc7+ {[%emt 0:00:48]} 1-0

[Event "4NCL 2019-20"]
[Site "Daventry"]
[Date "2020.02.08"]
[Round "5"]
[White "Golding, Alex"]
[Black "Jaracz, Pawel"]
[Result "1/2-1/2"]
[ECO "B12"]
[WhiteElo "2306"]
[BlackElo "2469"]
[Annotator "ChessBase"]
[PlyCount "92"]
[EventDate "2020.01.11"]
[EventCountry "ENG"]
[SourceTitle "playchess.com"]
[Source "ChessBase"]
[SourceQuality "1"]
[TimeControl "40/6000:3000+30"]

1. e4 {[%emt 0:00:00]} c6 {[%emt 0:00:00]} 2. d4 {[%emt 0:04:01]} d5 {[%emt 0:00:00]} 3. e5 {[%emt 0:00:00]} c5 {[%emt 0:00:00]} 4. c4 {[%emt 0:08:40]} cxd4 {[%emt 0:00:19]} 5. Qxd4 {[%emt 0:09:04]} e6 {[%emt 0:23:44]} 6. cxd5 {[%emt 0:00:54]} Nc6 {[%emt 0:00:22]} 7. Bb5 {[%emt 0:01:12]} Qxd5 {[%emt 0:00:26]} 8. Qxd5 {[%emt 0:01:48]} exd5 {[%emt 0:00:00]} 9. Nf3 {[%emt 0:06:56]} Bc5 {[%emt 0:07:18]} 10. Nc3 {[%emt 0:00:52]} Nge7 {[%emt 0:00:00]} 11. Bg5 {[%emt 0:00:27]} Be6 {[%emt 0:23:11]} 12. O-O {[%emt 0:00:50]} a6 {[%emt 0:09:49]} 13. Bxc6+ {[%emt 0:02:45]} Nxc6 {[%emt 0:00:04]} 14. Rfd1 {[%emt 0:00:42]} h6 {[%emt 0:00:00]} 15. Bh4 {[%emt 0:01:17]} g5 {[%emt 0:00:00]} 16. Bg3 {[%emt 0:00:00]} Rd8 {[%emt 0:07:23]} 17. Rac1 {[%emt 0:00:00]} Ba7 {[%emt 0:01:46]} 18. b3 {[%emt 0:00:17]} O-O {[%emt 0:00:00]} 19. Rd2 {[%emt 0:00:16]} Ne7 {[%emt 0:00:21]} 20. Ne2 {[%emt 0:00:48]} Rc8 {[%emt 0:01:54]} 21. Rxc8 {[%emt 0:01:53]} Rxc8 {[%emt 0:00:00]} 22. h4 {[%emt 0:00:07]} g4 {[%emt 0:01:14]} 23. Nfd4 {[%emt 0:00:58]} Nc6 {[%emt 0:02:54]} 24. Bf4 {[%emt 0:00:38]} Nxd4 {[%emt 0:00:15]} 25. Nxd4 {[%emt 0:00:00]} Bxd4 {[%emt 0:01:24]} 26. Rxd4 {[%emt 0:00:00]} h5 {[%emt 0:00:00]} 27. Bg5 {[%emt 0:00:24]} Rc2 {[%emt 0:00:00]} 28. Rd2 {[%emt 0:01:06]} Rxd2 {[%emt 0:00:00]} 29. Bxd2 {[%emt 0:00:00]} Kh7 {[%emt 0:00:00]} 30. Bc3 {[%emt 0:00:29]} Kg6 {[%emt 0:00:00]} 31. f3 {[%emt 0:00:00]} gxf3 {[%emt 0:00:00]} 32. gxf3 {[%emt 0:00:00]} Kf5 {[%emt 0:00:00]} 33. Kf2 {[%emt 0:00:00]} Kf4 {[%emt 0:00:00]} 34. Bd4 {[%emt 0:00:00]} Bf5 {[%emt 0:00:00]} 35. b4 {[%emt 0:00:00]} Bc2 {[%emt 0:00:00]} 36. Ke2 {[%emt 0:00:00]} Ba4 {[%emt 0:03:15]} 37. a3 {[%emt 0:00:00]} Bc2 {[%emt 0:00:46]} 38. Bc3 {[%emt 0:00:00]} Ba4 {[%emt 0:00:39]} 39. Bd4 {[%emt 0:00:00]} Bd7 {[%emt 0:01:05]} 40. Kf2 {[%emt 0:00:00]} Bb5 {[%emt 0:00:25]} 41. Bc3 {[%emt 0:47:55]} Bd3 {[%emt 0:51:25]} 42. Bd4 {[%emt 0:00:12]} Bc2 {[%emt 0:00:13]} 43. Ke2 {[%emt 0:00:04]} Kg3 {[%emt 0:05:43]} 44. Bf2+ {[%emt 0:00:08]} Kg2 {[%emt 0:00:00]} 45. Bc5 {[%emt 0:00:00]} Kg3 {[%emt 0:00:00]} 46. Bf2+ {[%emt 0:00:00]} Kf4 {[%emt 0:00:00]} 1/2-1/2

[Event "4NCL 2019-20"]
[Site "Daventry"]
[Date "2020.02.08"]
[Round "5"]
[White "Ciuksyte, Dagne"]
[Black "Bulmaga, Irina"]
[Result "1/2-1/2"]
[ECO "B87"]
[WhiteElo "2295"]
[BlackElo "2453"]
[Annotator "ChessBase"]
[PlyCount "106"]
[EventDate "2020.01.11"]
[EventCountry "ENG"]
[SourceTitle "playchess.com"]
[Source "ChessBase"]
[SourceQuality "1"]
[TimeControl "40/6000:3000+30"]

1. e4 {[%emt 0:00:00]} c5 {[%emt 0:00:00]} 2. Nf3 {[%emt 0:00:00]} d6 {[%emt 0:00:00]} 3. d4 {[%emt 0:00:00]} cxd4 {[%emt 0:00:00]} 4. Nxd4 {[%emt 0:00:00]} Nf6 {[%emt 0:00:00]} 5. Nc3 {[%emt 0:00:00]} a6 {[%emt 0:00:00]} 6. Bc4 {[%emt 0:00:00]} e6 {[%emt 0:00:00]} 7. O-O {[%emt 0:00:00]} b5 {[%emt 0:00:00]} 8. Bb3 {[%emt 0:00:00]} Be7 {[%emt 0:00:00]} 9. f4 {[%emt 0:00:00]} O-O {[%emt 0:00:00]} 10. f5 {[%emt 0:02:18]} e5 {[%emt 0:00:00]} 11. Nde2 {[%emt 0:00:00]} Bb7 {[%emt 0:00:28]} 12. Ng3 {[%emt 0:00:07]} Nbd7 {[%emt 0:07:20]} 13. Bg5 {[%emt 0:04:52]} b4 {[%emt 0:17:23]} 14. Bxf6 {[%emt 0:01:55]} Nxf6 {[%emt 0:02:30]} 15. Nd5 {[%emt 0:00:51]} Bxd5 {[%emt 0:01:44]} 16. Bxd5 {[%emt 0:00:00]} Rc8 {[%emt 0:00:38]} 17. Bb3 {[%emt 0:20:42]} d5 {[%emt 0:23:36]} 18. exd5 {[%emt 0:07:56]} Bc5+ {[%emt 0:00:00]} 19. Kh1 {[%emt 0:00:00]} Bd4 {[%emt 0:02:36]} 20. Rb1 {[%emt 0:00:18]} a5 {[%emt 0:05:55]} 21. Nh5 {[%emt 0:08:24]} Rc5 {[%emt 0:19:46]} 22. a4 {[%emt 0:07:42]} Re8 {[%emt 0:08:57]} 23. Re1 {[%emt 0:05:55]} g6 {[%emt 0:03:37]} 24. fxg6 {[%emt 0:01:30]} hxg6 {[%emt 0:00:00]} 25. Nxf6+ {[%emt 0:05:39]} Qxf6 {[%emt 0:00:00]} 26. Rf1 {[%emt 0:04:11]} Qd6 {[%emt 0:00:00]} 27. Qf3 {[%emt 0:05:43]} Rc7 {[%emt 0:00:00]} 28. Qf6 {[%emt 0:04:36]} Qxf6 {[%emt 0:00:00]} 29. Rxf6 {[%emt 0:00:00]} e4 {[%emt 0:00:00]} 30. Rc6 {[%emt 0:04:47]} Rxc6 {[%emt 0:02:49]} 31. dxc6 {[%emt 0:00:00]} e3 {[%emt 0:00:00]} 32. Bc4 {[%emt 0:00:00]} Kf8 {[%emt 0:02:03]} 33. g3 {[%emt 0:00:00]} Bb6 {[%emt 0:00:03]} 34. Rd1 {[%emt 0:01:40]} Rc8 {[%emt 0:00:00]} 35. Bb5 {[%emt 0:02:27]} Ke7 {[%emt 0:00:00]} 36. Kg2 {[%emt 0:00:00]} Ke6 {[%emt 0:00:00]} 37. Kf3 {[%emt 0:01:09]} g5 {[%emt 0:00:00]} 38. Bc4+ {[%emt 0:00:54]} Ke5 {[%emt 0:00:00]} 39. Rd5+ {[%emt 0:02:32]} Kf6 {[%emt 0:00:00]} 40. Bb5 {[%emt 0:02:35]} g4+ {[%emt 0:00:01]} 41. Kxg4 {[%emt 0:09:41]} Rxc6 {[%emt 0:02:42]} 42. Kf3 {[%emt 0:09:20]} Re6 {[%emt 0:02:38]} 43. Ke2 {[%emt 0:00:08]} Ke7 {[%emt 0:10:26]} 44. Bd3 {[%emt 0:05:06]} Rf6 {[%emt 0:07:22]} 45. Bf5 {[%emt 0:00:19]} Rd6 {[%emt 0:09:06]} 46. Rxd6 {[%emt 0:03:18]} Kxd6 {[%emt 0:00:02]} 47. c3 {[%emt 0:01:47]} Bc5 {[%emt 0:01:46]} 48. h4 {[%emt 0:03:18]} Kd5 {[%emt 0:01:09]} 49. Bd3 {[%emt 0:00:53]} Bd6 {[%emt 0:05:36]} 50. g4 {[%emt 0:03:04]} bxc3 {[%emt 0:03:47]} 51. bxc3 {[%emt 0:00:34]} Be5 {[%emt 0:02:02]} 52. Bb1 {[%emt 0:07:00]} Bxc3 {[%emt 0:01:04]} 53. Kxe3 {[%emt 0:00:35]} Ke5 {[%emt 0:00:17] Ke4+} 1/2-1/2

[Event "4NCL 2019-20"]
[Site "Daventry"]
[Date "2020.02.08"]
[Round "5"]
[White "Delaney, Killian"]
[Black "Roberson, Peter T"]
[Result "1/2-1/2"]
[ECO "A14"]
[WhiteElo "2287"]
[BlackElo "2435"]
[Annotator "ChessBase"]
[PlyCount "83"]
[EventDate "2020.01.11"]
[EventCountry "ENG"]
[SourceTitle "playchess.com"]
[Source "ChessBase"]
[SourceQuality "1"]
[TimeControl "40/6000:3000+30"]

1. Nf3 {[%emt 0:00:00]} Nf6 {[%emt 0:00:00]} 2. c4 {[%emt 0:00:00]} e6 {[%emt 0:00:00]} 3. g3 {[%emt 0:00:00]} d5 {[%emt 0:00:00]} 4. Bg2 {[%emt 0:00:00]} Be7 {[%emt 0:00:00]} 5. O-O {[%emt 0:00:00]} O-O {[%emt 0:00:00]} 6. b3 {[%emt 0:00:00]} d4 {[%emt 0:00:00]} 7. e3 {[%emt 0:00:00]} c5 {[%emt 0:00:00]} 8. exd4 {[%emt 0:00:00]} cxd4 {[%emt 0:00:00]} 9. d3 {[%emt 0:00:00]} Nc6 {[%emt 0:00:00]} 10. Re1 {[%emt 0:00:00]} Nd7 {[%emt 0:00:16]} 11. Ba3 {[%emt 0:06:22]} a5 {[%emt 0:06:09]} 12. Bxe7 {[%emt 0:01:47]} Qxe7 {[%emt 0:00:00]} 13. Nbd2 {[%emt 0:02:34]} e5 {[%emt 0:30:59]} 14. Nxe5 {[%emt 0:29:40]} Ndxe5 15. Bxc6 {[%emt 0:00:00]} bxc6 16. f4 {[%emt 0:00:00]} f6 17. fxe5 {[%emt 0:00:00]} fxe5 18. Qe2 {[%emt 0:00:00]} Bh3 19. Qxe5 {[%emt 0:00:00]} Qf7 20. Qxd4 {[%emt 0:00:00]} Rad8 21. Qf4 {[%emt 0:00:00]} Qxf4 22. gxf4 {[%emt 0:00:00]} Rxf4 23. Re4 {[%emt 0:00:00]} Rf6 24. d4 {[%emt 0:00:00]} Rg6+ 25. Kf2 {[%emt 0:00:00]} Rg2+ 26. Ke3 {[%emt 0:00:00]} Rxh2 27. Rg1 {[%emt 0:00:00]} Bf5 28. Re5 {[%emt 0:00:00]} Rh3+ 29. Kf2 {[%emt 0:00:00]} Rxd4 30. Nf3 {[%emt 0:00:00]} Rf4 31. Rg3 {[%emt 0:00:00]} Rxg3 32. Kxg3 {[%emt 0:00:00]} Rg4+ 33. Kf2 {[%emt 0:00:00]} g6 34. Rxa5 {[%emt 0:00:00]} h5 35. Ne5 {[%emt 0:00:00]} Rf4+ 36. Kg3 {[%emt 0:00:00]} g5 37. Nf3 {[%emt 0:00:00]} Kg7 38. Rc5 {[%emt 0:00:00]} Kg8 39. Kf2 {[%emt 0:00:00]} Kg7 40. Kg3 {[%emt 0:00:00]} Rg4+ 41. Kf2 {[%emt 0:50:30]} Rf4 42. Kg3 {[%emt 0:00:30]} 1/2-1/2

[Event "4NCL 2019-20"]
[Site "Daventry"]
[Date "2020.02.08"]
[Round "5"]
[White "Abbas, Daniel"]
[Black "Pert, Nicholas"]
[Result "0-1"]
[ECO "B31"]
[WhiteElo "2251"]
[BlackElo "2558"]
[Annotator "ChessBase"]
[PlyCount "86"]
[EventDate "2020.01.11"]
[EventCountry "ENG"]
[SourceTitle "playchess.com"]
[Source "ChessBase"]
[SourceQuality "1"]
[TimeControl "40/6000:3000+30"]

1. e4 {[%emt 0:00:00]} c5 {[%emt 0:00:21]} 2. Nf3 {[%emt 0:00:00]} Nc6 {[%emt 0:00:00]} 3. Bb5 {[%emt 0:00:00]} g6 {[%emt 0:00:00]} 4. Bxc6 {[%emt 0:00:00]} dxc6 {[%emt 0:00:00]} 5. d3 {[%emt 0:00:00]} Bg7 {[%emt 0:00:00]} 6. h3 {[%emt 0:00:00]} Nf6 {[%emt 0:00:00]} 7. Nc3 {[%emt 0:00:00]} Nd7 {[%emt 0:00:00]} 8. Be3 {[%emt 0:00:00]} e5 {[%emt 0:00:00]} 9. O-O {[%emt 0:00:00]} b6 {[%emt 0:00:00]} 10. Nh2 {[%emt 0:00:00]} Nf8 {[%emt 0:00:43]} 11. f4 exf4 12. Rxf4 {[%emt 0:00:00]} Be6 {[%emt 0:01:14]} 13. Rf2 {[%emt 0:04:40]} Qe7 {[%emt 0:13:32]} 14. a4 {[%emt 0:03:36]} Nd7 {[%emt 0:04:15]} 15. Qd2 {[%emt 0:04:55]} h6 {[%emt 0:04:08]} 16. Nf3 {[%emt 0:05:47]} O-O-O {[%emt 0:08:44]} 17. a5 {[%emt 0:11:09]} b5 {[%emt 0:00:00]} 18. d4 {[%emt 0:05:56]} cxd4 {[%emt 0:02:58]} 19. Nxd4 {[%emt 0:00:00]} Nb8 {[%emt 0:17:54]} 20. Rf3 {[%emt 0:20:56]} c5 {[%emt 0:08:40]} 21. Ncxb5 {[%emt 0:00:00]} a6 {[%emt 0:03:28]} 22. Qf2 {[%emt 0:02:07]} cxd4 {[%emt 0:01:08]} 23. Bxd4 {[%emt 0:03:52]} Bxd4 {[%emt 0:01:42]} 24. Nxd4 {[%emt 0:00:00]} Rd7 {[%emt 0:03:10]} 25. Raa3 {[%emt 0:06:34]} Rhd8 {[%emt 0:06:27]} 26. Rfd3 {[%emt 0:09:18]} Bc4 {[%emt 0:02:15]} 27. Rac3 {[%emt 0:02:24]} Rc7 {[%emt 0:00:00]} 28. Rf3 {[%emt 0:00:00]} Qxe4 {[%emt 0:01:59]} 29. Rf4 {[%emt 0:00:58]} Qe5 {[%emt 0:01:00]} 30. Re3 {[%emt 0:02:13]} Qxa5 {[%emt 0:00:07]} 31. b3 {[%emt 0:00:37]} Bd5 {[%emt 0:04:27]} 32. Re5 {[%emt 0:01:55]} Qc3 {[%emt 0:03:08]} 33. Re3 {[%emt 0:00:03]} Qc5 {[%emt 0:00:00]} 34. c4 {[%emt 0:01:48]} g5 {[%emt 0:02:01]} 35. Rf5 {[%emt 0:01:44]} Qxd4 {[%emt 0:00:10]} 36. cxd5 {[%emt 0:00:15]} Rxd5 {[%emt 0:00:37]} 37. Rxd5 {[%emt 0:01:06]} Qxd5 {[%emt 0:00:00]} 38. Qf6 {[%emt 0:00:00]} Qc5 {[%emt 0:00:31]} 39. Qf2 {[%emt 0:00:00]} Re7 {[%emt 0:01:59]} 40. Rxe7 {[%emt 0:00:00]} Qxe7 {[%emt 0:00:00]} 41. Qd4 {[%emt 0:50:06]} Qe6 {[%emt 0:49:54]} 42. b4 {[%emt 0:00:24]} Kb7 {[%emt 0:00:23]} 43. Kh1 {[%emt 0:00:14]} Nc6 {[%emt 0:00:04]} 0-1

[Event "4NCL 2019-20"]
[Site "Daventry"]
[Date "2020.02.08"]
[Round "5"]
[White "Chapman, Terry P D"]
[Black "Toma, Katarzyna"]
[Result "1/2-1/2"]
[ECO "D90"]
[WhiteElo "2241"]
[BlackElo "2293"]
[Annotator "ChessBase"]
[PlyCount "56"]
[EventDate "2020.01.11"]
[EventCountry "ENG"]
[SourceTitle "playchess.com"]
[Source "ChessBase"]
[SourceQuality "1"]
[TimeControl "40/6000:3000+30"]

1. Nf3 {[%emt 0:00:00]} Nf6 {[%emt 0:00:00]} 2. c4 {[%emt 0:00:00]} g6 {[%emt 0:00:00]} 3. Nc3 {[%emt 0:00:00]} d5 {[%emt 0:00:00]} 4. cxd5 {[%emt 0:00:00]} Nxd5 {[%emt 0:00:00]} 5. Qb3 {[%emt 0:00:00]} Nb6 {[%emt 0:01:02]} 6. d4 {[%emt 0:00:00]} Bg7 {[%emt 0:00:00]} 7. Bf4 {[%emt 0:00:00]} O-O {[%emt 0:03:46]} 8. Rd1 {[%emt 0:06:27]} Be6 {[%emt 0:19:37]} 9. Qa3 {[%emt 0:12:28]} c6 {[%emt 0:19:06]} 10. e4 {[%emt 0:02:11]} N8d7 {[%emt 0:04:27]} 11. h4 {[%emt 0:02:25]} h5 {[%emt 0:00:47]} 12. Ng5 {[%emt 0:05:27]} Bc4 {[%emt 0:00:48]} 13. Bxc4 {[%emt 0:01:06]} Nxc4 {[%emt 0:00:00]} 14. Qb3 {[%emt 0:00:57]} b5 {[%emt 0:02:33]} 15. e5 {[%emt 0:14:14]} Ndb6 {[%emt 0:00:37]} 16. Qc2 {[%emt 0:09:58]} Nd5 {[%emt 0:10:11]} 17. Nxd5 {[%emt 0:10:58]} Qxd5 {[%emt 0:00:00]} 18. O-O {[%emt 0:00:46]} f6 {[%emt 0:09:10]} 19. Nf3 {[%emt 0:05:44]} Kh7 {[%emt 0:10:32]} 20. Rfe1 {[%emt 0:01:44]} Rfd8 {[%emt 0:00:00]} 21. Rc1 {[%emt 0:07:02]} Rac8 {[%emt 0:00:00]} 22. b3 {[%emt 0:00:41]} Nb6 {[%emt 0:00:00]} 23. Qb1 {[%emt 0:06:24]} Qd7 {[%emt 0:00:16]} 24. e6 {[%emt 0:01:09]} Qb7 {[%emt 0:00:05]} 25. Re5 {[%emt 0:01:13]} fxe5 {[%emt 0:07:39]} 26. Ng5+ {[%emt 0:00:00]} Kh6 {[%emt 0:00:00]} 27. Nf7+ {[%emt 0:00:00]} Kh7 {[%emt 0:00:00]} 28. Ng5+ {[%emt 0:02:29]} Kh6 {[%emt 0:00:00]} 1/2-1/2

[Event "4NCL 2019-20"]
[Site "Daventry"]
[Date "2020.02.08"]
[Round "5"]
[White "Connell, Blair N"]
[Black "Ledger, Stephen C"]
[Result "1/2-1/2"]
[ECO "D00"]
[WhiteElo "2239"]
[BlackElo "2013"]
[Annotator "ChessBase"]
[PlyCount "71"]
[EventDate "2020.01.11"]
[EventCountry "ENG"]
[SourceTitle "playchess.com"]
[Source "ChessBase"]
[SourceQuality "1"]
[TimeControl "40/6000:3000+30"]

1. d4 {[%emt 0:00:56]} Nf6 {[%emt 0:00:00]} 2. Nc3 {[%emt 0:00:47]} d5 {[%emt 0:00:00]} 3. Bf4 {[%emt 0:00:02]} e6 {[%emt 0:02:29]} 4. e3 {[%emt 0:00:11]} a6 {[%emt 0:00:36]} 5. Bd3 {[%emt 0:00:28]} c5 {[%emt 0:02:19]} 6. Nf3 {[%emt 0:03:40]} Nc6 {[%emt 0:00:09]} 7. O-O {[%emt 0:00:28]} Bd6 {[%emt 0:06:07]} 8. dxc5 {[%emt 0:00:11]} Bxc5 {[%emt 0:04:17]} 9. e4 {[%emt 0:00:08]} dxe4 {[%emt 0:09:40]} 10. Nxe4 {[%emt 0:00:58]} Nxe4 {[%emt 0:01:00]} 11. Bxe4 {[%emt 0:00:00]} Qxd1 {[%emt 0:03:43]} 12. Rfxd1 {[%emt 0:00:00]} f6 {[%emt 0:05:08]} 13. Bd6 {[%emt 0:08:03]} Ba7 {[%emt 0:03:43]} 14. a4 {[%emt 0:09:34]} Bd7 {[%emt 0:02:33]} 15. b4 {[%emt 0:04:36]} Bb8 {[%emt 0:12:38]} 16. b5 {[%emt 0:00:51]} Nd8 {[%emt 0:07:42]} 17. bxa6 {[%emt 0:04:27]} Bxd6 {[%emt 0:02:50]} 18. axb7 {[%emt 0:00:18]} Nxb7 {[%emt 0:00:30]} 19. Bxb7 {[%emt 0:02:06]} Ra7 {[%emt 0:00:29]} 20. Rxd6 {[%emt 0:18:36]} Rxb7 {[%emt 0:00:00]} 21. Rd3 {[%emt 0:15:50]} Ke7 {[%emt 0:02:24]} 22. Rda3 {[%emt 0:04:23]} Rc8 {[%emt 0:01:18]} 23. Ne1 {[%emt 0:00:25]} Ra7 {[%emt 0:02:26]} 24. a5 {[%emt 0:00:35]} Bb5 {[%emt 0:01:47]} 25. f3 {[%emt 0:03:09]} Rc5 {[%emt 0:01:34]} 26. Kf2 {[%emt 0:02:29]} Kd6 {[%emt 0:01:52]} 27. f4 {[%emt 0:03:56]} Ba6 {[%emt 0:03:37]} 28. Ke3 {[%emt 0:00:20]} e5 {[%emt 0:01:38]} 29. fxe5+ {[%emt 0:05:41]} Rxe5+ {[%emt 0:00:00]} 30. Kf3 {[%emt 0:01:40]} Rae7 {[%emt 0:04:21]} 31. Rd1+ {[%emt 0:01:19]} Kc7 {[%emt 0:02:26]} 32. Rc3+ {[%emt 0:00:00]} Kb8 {[%emt 0:01:17]} 33. Rd8+ {[%emt 0:01:37]} Ka7 {[%emt 0:00:00]} 34. Nd3 {[%emt 0:00:00]} Bb7+ {[%emt 0:04:41]} 35. Kf4 {[%emt 0:00:00]} g5+ {[%emt 0:02:32]} 36. Kg3 {[%emt 0:00:00]} 1/2-1/2

[Event "4NCL 2019-20"]
[Site "Daventry"]
[Date "2020.02.08"]
[Round "5"]
[White "House, Glenn L"]
[Black "Jackson, James P"]
[Result "0-1"]
[ECO "A04"]
[WhiteElo "2239"]
[BlackElo "2392"]
[Annotator "ChessBase"]
[PlyCount "64"]
[EventDate "2020.01.11"]
[EventCountry "ENG"]
[SourceTitle "playchess.com"]
[Source "ChessBase"]
[SourceQuality "1"]
[TimeControl "40/6000:3000+30"]

1. Nf3 {[%emt 0:00:00]} g6 {[%emt 0:00:00]} 2. e4 {[%emt 0:00:00]} Bg7 {[%emt 0:00:00]} 3. d3 {[%emt 0:00:00]} e5 {[%emt 0:00:23]} 4. g3 {[%emt 0:00:00]} Ne7 {[%emt 0:00:00]} 5. Bg2 {[%emt 0:00:00]} O-O {[%emt 0:00:00]} 6. O-O {[%emt 0:00:00]} d6 {[%emt 0:00:00]} 7. c3 {[%emt 0:00:00]} c5 {[%emt 0:00:25]} 8. a3 {[%emt 0:00:00]} Nbc6 {[%emt 0:04:38]} 9. b4 {[%emt 0:00:00]} b6 {[%emt 0:00:11]} 10. b5 {[%emt 0:00:00]} Na5 {[%emt 0:04:55]} 11. c4 {[%emt 0:00:00]} f5 {[%emt 0:04:18]} 12. Nc3 {[%emt 0:04:42]} Rb8 {[%emt 0:12:50]} 13. Bg5 {[%emt 0:08:32]} h6 {[%emt 0:07:16]} 14. Bxe7 {[%emt 0:05:23]} Qxe7 {[%emt 0:00:00]} 15. Nd5 {[%emt 0:00:17]} Qf7 {[%emt 0:00:00]} 16. Nh4 {[%emt 0:06:35]} Be6 17. exf5 {[%emt 0:00:00]} gxf5 18. Rb1 {[%emt 0:00:00]} Bf6 19. Nxf6+ {[%emt 0:00:00]} Qxf6 20. Qh5 {[%emt 0:00:00]} Rbe8 21. f4 {[%emt 0:00:00]} e4 22. Rbe1 {[%emt 0:00:00]} exd3 23. Rxe6 {[%emt 0:00:00]} Rxe6 24. Bd5 {[%emt 0:00:00]} Kg7 25. Nxf5+ {[%emt 0:00:00]} Kh7 26. Bxe6 {[%emt 0:00:00]} Qxe6 27. g4 {[%emt 0:00:00]} Nxc4 28. Qh3 {[%emt 0:00:00]} Rxf5 29. gxf5 {[%emt 0:00:00]} Qe3+ 30. Kg2 {[%emt 0:00:00]} Qxh3+ 31. Kxh3 {[%emt 0:00:00]} Ne3 32. Rg1 {[%emt 0:00:00]} d2 0-1